bitfinex/quotes_SOLUSD_20240714
["timestamp","ask_amount","ask_price","bid_price","bid_amount"]
[1720960265012,6.918,144.55,144.49,1.38410353]
[1720960265236,6.9176,144.56,144.48,16.218]
[1720960265721,6.9188,144.54,144.48,17.60189167]
[1720960265927,6.9181,144.55,144.48,16.218]
[1720960266310,26.6122,144.63,144.48,16.218]
[1720960266531,6.9175,144.57,144.48,16.218]
[1720960266825,2.18357624,144.62,144.48,16.218]
[1720960267033,17.2896,144.6,144.48,16.218]
[1720960267209,20.81,144.59,144.48,16.218]
[1720960267625,6.9179,144.56,144.48,16.218]
[1720960268416,6.9183,144.55,144.48,16.218]
[1720960269120,6.9175,144.56,144.48,16.218]
[1720960271234,6.9175,144.56,144.49,1.38386637]
[1720960271421,6.9175,144.56,144.48,16.218]
[1720960272317,51.9182,144.55,144.48,16.218]
[1720960273330,51.9182,144.55,144.49,1.38393509]
[1720960273527,6.9182,144.55,144.48,16.218]
[1720960273715,6.9182,144.55,144.49,1.38388388]
[1720960274038,6.9182,144.55,144.48,16.218]
[1720960274230,6.9176,144.56,144.48,16.218]
[1720960274633,27.7284,144.55,144.48,16.218]
[1720960274843,45.0,144.54,144.49,1.38404723]
[1720960275049,6.9184,144.55,144.48,17.60199302]
[1720960275215,27.7275,144.56,144.49,1.38397439]
[1720960275954,72.728,144.55,144.48,17.60193538]
[1720960276417,45.0,144.55,144.48,16.218]
[1720960276618,45.0,144.56,144.48,16.218]
[1720960277536,51.9177,144.56,144.48,16.218]
[1720960279650,6.9182,144.55,144.48,16.218]
[1720960281534,20.81,144.59,144.48,16.218]
[1720960281535,6.9185,144.54,144.48,16.218]
[1720960281737,6.9185,144.54,144.49,1.3838069]
[1720960282768,20.81,144.57,144.49,1.3838069]
[1720960283070,6.9186,144.54,144.49,1.3838069]
[1720960284667,6.918,144.55,144.48,16.218]
[1720960284961,6.9185,144.54,144.48,16.218]
[1720960285170,6.9181,144.55,144.48,16.218]
[1720960287171,6.9176,144.56,144.48,16.218]
[1720960289453,2.18357624,144.61,144.5,16.6475]
[1720960289643,20.81,144.62,144.5,16.6475]
[1720960289839,20.81,144.62,144.52,22.8077]
[1720960289840,6.9149,144.62,144.52,22.8077]
[1720960290058,6.9149,144.62,144.53,38.03074057]
[1720960290252,6.9142,144.63,144.54,16.6475]
[1720960290562,6.9142,144.63,144.56,16.6475]
[1720960290858,6.9142,144.63,144.57,1.38309313]
[1720960291057,6.9142,144.63,144.58,1.38309698]
[1720960292038,6.9142,144.63,144.57,1.38309923]
[1720960292336,6.9142,144.63,144.58,1.38309455]
[1720960293247,6.9142,144.63,144.57,1.38309554]
[1720960293445,6.9142,144.63,144.58,1.38309694]
[1720960294043,9.09717624,144.65,144.58,1.38309694]
[1720960294249,6.9138,144.64,144.58,1.38309694]
[1720960295672,6.9133,144.65,144.58,1.38309694]
[1720960295841,6.9133,144.65,144.56,16.6475]
[1720960297841,6.9133,144.65,144.57,1.38292251]
[1720960299954,6.9131,144.66,144.57,1.38292251]
[1720960300361,6.9131,144.66,144.58,16.6475]
[1720960300541,6.9131,144.66,144.59,1.38281605]
[1720960300742,6.9131,144.66,144.58,16.6475]
[1720960301060,6.9131,144.66,144.6,6.1602]
[1720960301263,6.9134,144.65,144.6,6.1602]
[1720960302374,6.9125,144.67,144.6,6.1602]
[1720960302562,6.9125,144.67,144.61,1.38287681]
[1720960303139,17.2801,144.68,144.6,6.1602]
[1720960303465,6.9129,144.66,144.6,6.1602]
[1720960304042,20.81,144.68,144.6,6.1602]
[1720960304243,45.0,144.67,144.58,16.6475]
[1720960304670,6.9128,144.66,144.58,16.6475]
[1720960305069,51.9133,144.65,144.58,16.6475]
[1720960305271,45.0,144.65,144.59,1.38299077]
[1720960305453,6.9129,144.66,144.59,1.38299077]
[1720960307858,6.9133,144.65,144.58,16.6475]
[1720960308257,6.9133,144.65,144.59,1.38292484]
[1720960310278,6.9128,144.66,144.59,1.38292484]
[1720960311062,6.9125,144.67,144.6,6.1944]
[1720960311381,6.9125,144.67,144.62,16.1651]
[1720960311574,6.9125,144.67,144.63,1.38260201]
[1720960313587,23.4276,144.72,144.63,1.38260201]
[1720960314167,45.0,144.71,144.63,1.38260201]
[1720960314662,6.9119,144.68,144.63,1.38260201]
[1720960314877,6.9124,144.67,144.63,1.38260201]
[1720960315271,6.9119,144.68,144.63,1.38260201]
[1720960315673,6.9122,144.67,144.63,1.38260201]
[1720960316267,6.9119,144.68,144.63,1.38260201]
[1720960316865,6.9109,144.7,144.62,16.1651]
[1720960317265,6.9109,144.7,144.63,1.38242315]
[1720960317479,6.9109,144.7,144.62,16.1651]
[1720960317683,6.9115,144.69,144.63,1.38240251]
[1720960317987,6.9115,144.69,144.62,16.1651]
[1720960318175,6.9115,144.69,144.63,1.38251734]
[1720960318575,6.9108,144.7,144.63,1.38251734]
[1720960318988,6.9104,144.71,144.62,16.1651]
[1720960319688,6.9111,144.7,144.62,16.1651]
[1720960321286,6.9113,144.69,144.63,1.38247368]
[1720960321588,6.9109,144.7,144.62,16.1651]
[1720960322378,6.9109,144.7,144.63,1.38249956]
[1720960322567,6.9114,144.69,144.63,1.38249956]
[1720960322974,6.9118,144.68,144.62,16.1651]
[1720960323501,6.9107,144.71,144.63,1.38265165]
[1720960323695,45.0,144.7,144.63,1.38265165]
[1720960324793,45.0,144.7,144.62,16.1651]
[1720960325175,45.0,144.7,144.63,1.38252314]
[1720960325687,45.0,144.7,144.62,16.1651]
[1720960325995,45.0,144.7,144.63,1.38252366]
[1720960326493,6.9099,144.72,144.63,1.38252366]
[1720960326795,6.9099,144.72,144.62,16.1651]
[1720960327165,6.9099,144.72,144.63,1.38240548]
[1720960327573,6.9098,144.73,144.63,1.38240548]
[1720960328299,6.9098,144.73,144.62,16.1651]
[1720960328597,44.577,144.76,144.64,15.9801]
[1720960328893,6.9098,144.73,144.64,15.9801]
[1720960329092,6.9098,144.73,144.65,1.3822656]
[1720960329391,6.909,144.74,144.65,1.3822656]
[1720960329586,6.909,144.74,144.64,15.9801]
[1720960329783,6.9094,144.73,144.65,1.38216776]
[1720960330481,6.9089,144.74,144.65,1.38216776]
[1720960330682,20.81,144.76,144.64,15.9801]
[1720960330683,6.9095,144.73,144.64,15.9801]
[1720960331176,6.9095,144.73,144.65,1.38226653]
[1720960331591,6.9095,144.73,144.64,15.9801]
[1720960331782,6.9114,144.69,144.64,15.9801]
[1720960331981,6.9119,144.68,144.64,15.9801]
[1720960332187,6.9123,144.67,144.64,15.9801]
[1720960333080,6.9128,144.66,144.6,15.9801]
[1720960335102,6.9121,144.68,144.61,1.38297177]
[1720960335273,6.9118,144.68,144.61,1.38297177]
[1720960335477,45.0,144.67,144.61,1.38297177]
[1720960335905,45.0,144.67,144.6,15.9801]
[1720960336293,6.9113,144.7,144.6,15.9801]
[1720960336497,6.9113,144.7,144.61,1.38267474]
[1720960336888,6.9114,144.69,144.61,1.38267474]
[1720960337293,53.7482,144.73,144.61,1.38267474]
[1720960337496,6.9107,144.71,144.61,1.38267474]
[1720960338005,6.911,144.7,144.61,1.38267474]
[1720960338213,53.7482,144.73,144.6,15.9801]
[1720960338583,6.9116,144.69,144.61,1.3826588]
[1720960339302,6.911,144.7,144.61,1.3826588]
[1720960339517,6.911,144.7,144.62,15.9801]
[1720960339814,6.911,144.7,144.63,1.3824299]
[1720960340016,6.9104,144.71,144.64,6.0548]
[1720960340189,6.9104,144.71,144.65,1.38237904]
[1720960340624,6.91,144.72,144.65,1.38237904]
[1720960341189,6.9104,144.71,144.65,1.38237904]
[1720960341394,6.9104,144.71,144.66,15.9801]
[1720960341606,6.9099,144.72,144.67,1.38222673]
[1720960341797,6.9099,144.72,144.68,1.38215426]
[1720960342795,6.9095,144.73,144.67,1.38213471]
[1720960342987,6.9095,144.73,144.68,1.38213471]
[1720960343808,6.9079,144.77,144.69,1.38213525]
[1720960344111,6.9079,144.77,144.67,1.38189622]
[1720960344409,6.9081,144.76,144.66,15.9801]
[1720960344921,6.9085,144.75,144.67,1.38191692]
[1720960345226,6.9075,144.77,144.68,1.38190638]
[1720960345420,6.9075,144.77,144.66,15.9801]
[1720960345589,6.908,144.76,144.66,15.9801]
[1720960345792,20.81,144.77,144.67,1.38193732]
[1720960346028,38.0579,144.78,144.67,1.38193732]
[1720960346392,6.909,144.74,144.67,1.38193732]
[1720960346598,6.909,144.74,144.66,15.9801]
[1720960347134,6.9085,144.75,144.66,15.9801]
[1720960347423,6.9085,144.75,144.67,1.3820908]
[1720960349848,6.9091,144.74,144.67,1.3820908]
[1720960350149,45.0,144.73,144.67,1.3820908]
[1720960351727,38.0579,144.78,144.67,1.3820908]
[1720960351728,6.9085,144.75,144.67,1.3820908]
[1720960352550,6.9089,144.74,144.67,1.3820908]
[1720960352858,6.9095,144.73,144.66,15.9801]
[1720960353021,51.9101,144.72,144.66,15.9801]
[1720960353846,6.9104,144.71,144.66,15.9801]
[1720960354059,6.9104,144.71,144.57,274.6801]
[1720960354060,6.9126,144.67,144.62,15.6145]
[1720960354555,45.0,144.66,144.62,15.6145]
[1720960355134,51.9128,144.66,144.62,15.6145]
[1720960355351,20.79,144.65,144.59,15.6145]
[1720960355659,72.7038,144.64,144.59,15.6145]
[1720960355848,27.7038,144.64,144.59,15.6145]
[1720960356148,45.0,144.63,144.59,15.6145]
[1720960358258,51.9143,144.63,144.59,15.6145]
[1720960359048,65.79,144.63,144.56,6.2503]
[1720960359248,6.915,144.62,144.56,6.2503]
[1720960360651,16.0426,144.68,144.57,1.38329165]
[1720960360945,6.9129,144.66,144.58,1.38306821]
[1720960361262,6.9129,144.66,144.56,6.2503]
[1720960361623,6.9147,144.62,144.56,6.2503]
[1720960361825,27.7041,144.64,144.56,7.63364889]
[1720960362041,45.0,144.63,144.56,7.63364889]
[1720960362441,51.9142,144.63,144.56,6.2503]
[1720960362639,27.7046,144.62,144.56,6.2503]
[1720960362959,45.0,144.61,144.56,6.2503]
[1720960363522,6.9146,144.62,144.56,6.2503]
[1720960364765,6.9151,144.61,144.56,6.2503]
[1720960364962,45.0,144.6,144.56,6.2503]
[1720960365142,27.705,144.62,144.56,6.2503]
[1720960365347,45.0,144.61,144.56,6.2503]
[1720960365738,45.0,144.61,144.55,15.6145]
[1720960365739,65.79,144.61,144.55,15.6145]
[1720960366071,27.7059,144.6,144.55,15.6145]
[1720960366374,45.0,144.59,144.55,15.6145]
[1720960368447,20.79,144.63,144.55,15.6145]
[1720960369560,6.9148,144.62,144.55,15.6145]
[1720960369877,45.0,144.61,144.55,15.6145]
[1720960370088,6.9142,144.63,144.55,15.6145]
[1720960370260,20.79,144.66,144.55,15.6145]
[1720960370666,6.9149,144.62,144.55,15.6145]
[1720960371198,6.9151,144.61,144.55,15.6145]
[1720960371759,6.9147,144.62,144.55,15.6145]
[1720960372783,27.7056,144.61,144.55,15.6145]
[1720960372983,6.9156,144.61,144.55,15.6145]
[1720960373282,45.0,144.6,144.55,15.6145]
[1720960373788,51.9156,144.6,144.55,15.6145]
[1720960374693,27.7067,144.58,144.55,15.6145]
[1720960374863,45.0,144.57,144.52,21.4284]
[1720960375061,20.79,144.59,144.52,21.4284]
[1720960375373,65.79,144.58,144.52,21.4284]
[1720960375570,6.9171,144.57,144.52,21.4284]
[1720960375777,45.0,144.58,144.52,21.4284]
[1720960376564,51.9166,144.58,144.52,21.4284]
[1720960377282,45.0,144.58,144.52,21.4284]
[1720960377583,51.9163,144.59,144.52,21.4284]
[1720960377788,6.9169,144.58,144.52,21.4284]
[1720960378092,45.0,144.57,144.52,21.4284]
[1720960380490,6.9148,144.62,144.53,1.38374943]
[1720960380693,6.9156,144.6,144.53,1.38374943]
[1720960380892,6.9156,144.6,144.52,21.4284]
[1720960381891,6.9151,144.61,144.52,21.4284]
[1720960382072,45.0,144.6,144.52,21.4284]
[1720960382594,51.9157,144.6,144.52,21.4284]
[1720960382995,45.0,144.6,144.53,1.38348599]
[1720960383700,51.9157,144.6,144.52,21.4284]
[1720960384678,6.9164,144.59,144.52,21.4284]
[1720960384887,51.9157,144.6,144.53,1.38356957]
[1720960385479,6.9163,144.59,144.53,1.38356957]
[1720960385674,65.79,144.6,144.52,21.4284]
[1720960385896,6.9174,144.57,144.52,21.4284]
[1720960386686,51.9176,144.56,144.52,15.2615]
[1720960387001,65.79,144.56,144.48,15.5287]
[1720960387176,83.0845,144.56,144.48,15.5287]
[1720960387494,6.9195,144.52,144.48,15.5287]
[1720960387799,6.919,144.53,144.48,15.5287]
[1720960387997,51.9194,144.52,144.48,15.5287]
[1720960389473,45.0,144.52,144.48,15.5287]
[1720960390081,51.9195,144.52,144.48,15.5287]
[1720960390285,51.9195,144.52,144.44,33.59912659]
[1720960392694,27.7101,144.51,144.44,18.07042659]
[1720960392897,20.79,144.49,144.44,18.07042659]
[1720960393081,45.0,144.48,144.44,18.07042659]
[1720960394186,45.0,144.49,144.45,15.5287]
[1720960394774,51.921,144.49,144.45,15.5287]
[1720960395190,45.0,144.49,144.45,15.5287]
[1720960395497,6.921,144.49,144.45,15.5287]
[1720960395794,6.922,144.47,144.45,15.5287]
[1720960396101,45.0,144.46,144.45,15.5287]
[1720960396301,6.9215,144.48,144.45,15.5287]
[1720960396607,31.1913,144.54,144.45,15.5287]
[1720960396608,6.921,144.49,144.45,15.5287]
[1720960396793,45.0,144.48,144.45,15.5287]
[1720960397508,6.9214,144.48,144.45,15.5287]
[1720960398797,6.922,144.47,144.45,15.5287]
[1720960398994,45.0,144.46,144.44,18.07042659]
[1720960400709,6.9228,144.45,144.44,18.07042659]
[1720960400908,51.9228,144.45,144.44,18.07042659]
[1720960401606,45.0,144.45,144.44,18.07042659]
[1720960401802,6.9216,144.48,144.44,18.07042659]
[1720960402710,6.9224,144.46,144.44,18.07042659]
[1720960403101,45.0,144.45,144.44,18.07042659]
[1720960404111,51.9228,144.45,144.44,18.07042659]
[1720960404994,72.7128,144.45,144.44,18.07042659]
[1720960405517,51.9228,144.45,144.44,18.07042659]
[1720960405815,72.7128,144.45,144.44,18.07042659]
[1720960405996,51.9228,144.45,144.44,18.07042659]
[1720960406897,72.7128,144.45,144.44,18.07042659]
[1720960407502,51.9228,144.45,144.44,18.07042659]
[1720960411008,6.9228,144.45,144.44,18.07042659]
[1720960412012,51.9228,144.45,144.44,18.07042659]
[1720960412795,72.7128,144.45,144.44,18.07042659]
[1720960415200,6.9228,144.45,144.44,18.07042659]
[1720960415402,27.7128,144.45,144.44,18.07042659]
[1720960416501,72.7128,144.45,144.44,18.07042659]
[1720960419733,6.9228,144.45,144.44,18.07042659]
[1720960420105,27.7128,144.45,144.44,18.07042659]
[1720960421002,72.7128,144.45,144.44,18.07042659]
[1720960421919,51.9228,144.45,144.44,18.07042659]
[1720960423339,72.7128,144.45,144.44,18.07042659]
[1720960424610,72.7128,144.45,144.41,1.0617212]
[1720960424827,6.9242,144.42,144.41,1.0617212]
[1720960425037,51.9242,144.42,144.41,1.0617212]
[1720960425245,6.9242,144.42,144.41,1.0617212]
[1720960425450,6.9239,144.43,144.41,1.0617212]
[1720960425749,6.924,144.43,144.41,1.0617212]
[1720960426264,6.9242,144.42,144.41,1.0617212]
[1720960427651,6.9239,144.43,144.41,1.0617212]
[1720960428147,51.9242,144.42,144.41,1.0617212]
[1720960430129,45.0,144.42,144.41,1.0617212]
[1720960430740,51.9242,144.42,144.41,1.0617212]
[1720960431234,72.7142,144.42,144.41,1.0617212]
[1720960431436,51.9242,144.42,144.41,2.12e-05]
[1720960431624,16.2338,144.47,144.41,2.12e-05]
[1720960431625,23.5394,144.47,144.41,2.12e-05]
[1720960431825,6.9242,144.42,144.41,2.12e-05]
[1720960432122,6.9238,144.43,144.41,2.12e-05]
[1720960432328,45.0,144.46,144.41,2.12e-05]
[1720960432533,65.79,144.46,144.41,2.12e-05]
[1720960433323,20.79,144.45,144.41,2.12e-05]
[1720960433534,6.9241,144.43,144.41,2.12e-05]
[1720960433740,45.0,144.42,144.41,2.12e-05]
[1720960434560,6.9234,144.44,144.41,2.12e-05]
[1720960434754,20.79,144.46,144.41,2.12e-05]
[1720960435055,65.79,144.45,144.41,2.12e-05]
[1720960435255,6.9242,144.42,144.41,2.12e-05]
[1720960435434,51.9242,144.42,144.41,2.12e-05]
[1720960436967,45.0,144.42,144.41,2.12e-05]
[1720960437338,6.9237,144.44,144.41,2.12e-05]
[1720960437554,6.2338,144.47,144.41,2.12e-05]
[1720960437732,6.9238,144.43,144.41,2.12e-05]
[1720960437928,6.9232,144.45,144.41,2.12e-05]
[1720960438135,17.3063,144.46,144.41,2.12e-05]
[1720960438336,6.9237,144.43,144.41,2.12e-05]
[1720960438836,38.0963,144.46,144.41,2.12e-05]
[1720960439036,6.9242,144.42,144.41,2.12e-05]
[1720960439236,51.9242,144.42,144.41,2.12e-05]
[1720960440246,45.0,144.42,144.41,2.12e-05]
[1720960440676,65.79,144.42,144.33,6.4348]
[1720960440851,45.0,144.41,144.33,6.4348]
[1720960441052,6.926,144.39,144.33,6.4348]
[1720960441548,51.925,144.41,144.33,7.82042986]
[1720960441768,6.9253,144.4,144.33,7.82042986]
[1720960441948,51.926,144.39,144.33,7.82028913]
[1720960442149,65.79,144.41,144.33,6.4348]
[1720960442348,6.9265,144.38,144.33,6.4348]
[1720960442657,65.79,144.37,144.32,18.79220399]
[1720960442865,6.9282,144.34,144.32,18.79220399]
[1720960443067,38.7847,144.4,144.32,18.79220399]
[1720960443253,6.9271,144.36,144.32,18.79220399]
[1720960443447,38.7847,144.4,144.32,18.79220399]
[1720960443655,45.0,144.39,144.32,18.79220399]
[1720960443953,6.9278,144.35,144.32,18.79220399]
[1720960444160,20.79,144.35,144.32,18.79220399]
[1720960444349,79.6299,144.39,144.32,18.79220399]
[1720960444350,6.9285,144.33,144.32,18.79220399]
[1720960444543,51.9285,144.33,144.32,18.79220399]
[1720960444951,17.3167,144.37,144.32,18.79220399]
[1720960444952,6.928,144.35,144.32,18.79220399]
[1720960445256,34.6299,144.39,144.32,18.79220399]
[1720960445257,6.9285,144.33,144.32,18.79220399]
[1720960445454,51.9285,144.33,144.32,18.79220399]
[1720960445771,17.317,144.37,144.32,18.79220399]
[1720960446068,65.79,144.36,144.32,18.79220399]
[1720960446257,6.9285,144.33,144.32,18.79220399]
[1720960446462,51.9285,144.33,144.32,18.79220399]
[1720960447376,90.0399,144.33,144.32,18.79220399]
[1720960449571,6.9285,144.33,144.32,18.79220399]
[1720960449773,6.9274,144.36,144.32,18.79220399]
[1720960451981,45.0,144.35,144.32,18.79220399]
[1720960453284,6.9285,144.33,144.32,18.79220399]
[1720960453459,45.0,144.33,144.32,18.79220399]
[1720960454067,6.9276,144.35,144.32,18.79220399]
[1720960454261,6.9282,144.34,144.32,18.79220399]
[1720960454457,45.0,144.33,144.32,18.79220399]
[1720960454658,72.7185,144.33,144.32,18.79220399]
[1720960454867,51.9285,144.33,144.32,18.79220399]
[1720960456271,69.2499,144.33,144.32,18.79220399]
[1720960456575,90.0399,144.33,144.32,18.79220399]
[1720960462284,30.79,144.32,144.26,0.8617212]
[1720960463082,6.9314,144.27,144.26,0.8617212]
[1720960463472,51.9314,144.27,144.26,0.8617212]
[1720960463872,20.79,144.3,144.26,0.8617212]
[1720960463873,6.9306,144.29,144.26,0.8617212]
[1720960464080,45.0,144.28,144.26,0.8617212]
[1720960464280,51.9311,144.28,144.26,0.8617212]
[1720960464480,45.0,144.28,144.26,0.8617212]
[1720960464659,6.9313,144.28,144.26,0.8617212]
[1720960464866,51.9314,144.27,144.26,0.8617212]
[1720960465893,72.7214,144.27,144.26,0.8617212]
[1720960466202,6.9332,144.24,144.22,16.6115]
[1720960466377,45.0,144.23,144.22,16.6115]
[1720960468273,34.6498,144.31,144.21,0.2]
[1720960468274,6.9338,144.22,144.21,0.2]
[1720960468678,51.9338,144.22,144.21,0.2]
[1720960468887,6.9333,144.24,144.21,0.2]
[1720960469074,51.9337,144.23,144.21,0.2]
[1720960469274,6.9338,144.22,144.21,0.2]
[1720960469568,51.9338,144.22,144.21,0.2]
[1720960470879,6.9338,144.22,144.21,0.2]
[1720960471078,17.3291,144.27,144.21,0.2]
[1720960471487,6.9338,144.22,144.21,0.2]
[1720960471987,6.9332,144.24,144.21,0.2]
[1720960473190,38.1178,144.28,144.21,7.1343]
[1720960473191,6.9322,144.26,144.21,7.1343]
[1720960473393,6.9315,144.27,144.22,6.9337]
[1720960473796,6.9315,144.27,144.23,16.6115]
[1720960473994,17.3275,144.28,144.21,0.2]
[1720960474177,6.9333,144.24,144.21,0.2]
[1720960474884,20.79,144.27,144.21,0.2]
[1720960475088,6.9338,144.22,144.21,0.2]
[1720960475596,6.9325,144.25,144.21,0.2]
[1720960475800,6.932,144.26,144.21,0.2]
[1720960475983,17.3264,144.29,144.21,0.2]
[1720960476177,6.9334,144.23,144.21,0.2]
[1720960476502,17.3292,144.27,144.21,0.2]
[1720960476689,6.9326,144.25,144.21,0.2]
[1720960476887,1.60434672,144.3,144.21,1.58655565]
[1720960477094,6.932,144.26,144.21,7.1341]
[1720960477587,6.1642,144.27,144.21,0.2]
[1720960477786,6.9338,144.22,144.21,0.2]
[1720960477991,6.9333,144.24,144.21,0.2]
[1720960478395,6.9325,144.25,144.21,0.2]
[1720960478710,17.3292,144.27,144.21,0.2]
[1720960478910,45.0,144.26,144.21,0.2]
[1720960479085,6.9334,144.23,144.21,0.2]
[1720960479606,45.0,144.26,144.21,0.2]
[1720960479607,51.9338,144.22,144.21,0.2]
[1720960480804,20.79,144.27,144.21,0.2]
[1720960481002,24.2684,144.22,144.21,0.2]
[1720960481303,24.2684,144.22,144.15,6.9369]
[1720960481304,6.9354,144.19,144.15,6.9369]
[1720960481600,58.159,144.25,144.15,6.9369]
[1720960481789,45.0,144.24,144.17,6.9361]
[1720960482184,45.0,144.24,144.14,1.38710473]
[1720960482600,45.0,144.24,144.15,1.38728856]
[1720960482808,6.9349,144.2,144.15,6.9368]
[1720960482987,6.9349,144.2,144.16,6.9366]
[1720960483794,15.5541,144.2,144.16,6.9366]
[1720960484012,45.0,144.19,144.13,6.5833]
[1720960484384,6.9361,144.18,144.13,6.5833]
[1720960484589,6.9368,144.16,144.12,0.3617212]
[1720960485694,45.0,144.19,144.12,0.3617212]
[1720960485896,6.9362,144.18,144.12,0.3617212]
[1720960486098,6.9353,144.19,144.14,6.9375]
[1720960486413,6.9353,144.19,144.15,1.38726923]
[1720960486712,6.9348,144.2,144.15,8.32436923]
[1720960486919,6.9348,144.2,144.15,6.9371]
[1720960487505,6.9348,144.2,144.17,15.4118]
[1720960487802,1.06045405,144.25,144.17,15.4118]
[1720960488131,6.9314,144.27,144.22,6.9337]
[1720960488424,6.9298,144.31,144.26,15.4118]
[1720960488637,6.9287,144.33,144.27,1.38624186]
[1720960489128,6.9281,144.34,144.27,1.38624186]
[1720960489532,26.8684,144.38,144.26,15.4118]
[1720960489821,26.8684,144.38,144.27,1.38607828]
[1720960490003,6.9286,144.33,144.26,15.4118]
[1720960490205,6.927,144.37,144.28,6.4871]
[1720960490735,6.927,144.37,144.29,1.38562663]
[1720960491022,6.927,144.37,144.28,6.4871]
[1720960491229,6.9272,144.36,144.28,6.4871]
[1720960491793,20.79,144.39,144.29,1.38577208]
[1720960492009,20.79,144.39,144.26,15.4118]
[1720960492010,20.79,144.35,144.26,15.4118]
[1720960492326,38.108,144.36,144.26,15.4118]
[1720960493147,6.9295,144.32,144.26,15.4118]
[1720960493314,17.3252,144.3,144.21,15.4118]
[1720960493516,6.9314,144.27,144.21,15.4118]
[1720960493842,6.9319,144.26,144.21,22.3461]
[1720960495101,6.931,144.28,144.23,6.9333]
[1720960495942,6.931,144.28,144.21,15.4118]
[1720960495943,6.9304,144.29,144.21,15.4118]
[1720960496260,6.93,144.3,144.21,15.4118]
[1720960496422,6.93,144.3,144.22,1.38642276]
[1720960497702,6.93,144.3,144.21,15.4118]
[1720960498319,6.9306,144.29,144.21,15.4118]
[1720960499310,6.9301,144.3,144.21,15.4118]
[1720960499912,6.9305,144.29,144.21,15.4118]
[1720960500451,6.9309,144.28,144.21,15.4118]
[1720960501021,45.0,144.27,144.21,15.4118]
[1720960501250,20.79,144.32,144.21,15.4118]
[1720960501444,65.79,144.31,144.21,15.4118]
[1720960502634,6.9314,144.27,144.21,15.4118]
[1720960502953,6.9314,144.27,144.22,1.38657058]
[1720960503131,6.9306,144.29,144.22,1.38657058]
[1720960503323,9.38010832,144.35,144.22,1.38657058]
[1720960503648,17.3189,144.36,144.21,15.4118]
[1720960504422,17.3189,144.36,144.23,6.4871]
[1720960504726,17.3189,144.36,144.23,3.4871]
[1720960505337,38.1089,144.36,144.23,2.9871]
[1720960505647,6.9291,144.32,144.23,2.4871]
[1720960506021,38.1089,144.36,144.23,2.4871]
[1720960506022,6.9282,144.34,144.23,2.4871]
[1720960506224,6.9282,144.34,144.24,16.0396]
[1720960506855,6.9282,144.34,144.25,1.38582898]
[1720960507035,6.4282,144.34,144.25,1.38582898]
[1720960507232,5.9282,144.34,144.29,6.93]
[1720960507443,0.5,144.33,144.25,1.38582898]
[1720960507652,5.9282,144.34,144.3,6.9299]
[1720960507951,5.9282,144.34,144.29,6.9304]
[1720960508335,5.9282,144.34,144.3,1.38582825]
[1720960508532,5.4282,144.34,144.3,1.38582825]
[1720960508968,7.4271,144.36,144.31,6.9291]
[1720960509260,26.69480832,144.39,144.32,23.4685]
[1720960509261,6.9267,144.37,144.32,23.4685]
[1720960509475,0.5,144.36,144.32,23.4685]
[1720960509961,6.9267,144.37,144.32,23.4685]
[1720960510130,6.9261,144.38,144.32,16.5396]
[1720960510333,6.9261,144.38,144.33,1.38539847]
[1720960510969,6.9256,144.39,144.34,6.9276]
[1720960511161,6.9256,144.39,144.33,1.38539847]
[1720960511453,6.9248,144.41,144.37,6.9262]
[1720960512039,6.9243,144.42,144.37,6.9262]
[1720960512560,6.9248,144.41,144.36,6.927]
[1720960512746,6.9248,144.41,144.37,6.9266]
[1720960517159,6.9248,144.41,144.38,1.3850487]